bitfinex/quotes_BTCUSD_20241010
["timestamp","ask_amount","ask_price","bid_price","bid_amount"]
[1728583736993,0.49058156,59176.0,59155.0,0.132]
[1728583736994,0.08450898,59164.0,59155.0,0.132]
[1728583737238,0.25333345,59158.0,59153.0,0.00669527]
[1728583737469,0.25333345,59159.0,59153.0,0.00669527]
[1728583737693,0.16083764,59163.0,59153.0,0.00669527]
[1728583737694,0.25333345,59158.0,59153.0,0.00669527]
[1728583738140,0.25333345,59158.0,59153.0,0.10669527]
[1728583738384,0.25333345,59158.0,59153.0,0.00669527]
[1728583738625,0.08572441,59163.0,59153.0,0.00669527]
[1728583738626,0.001,59159.0,59153.0,0.00669527]
[1728583738858,0.41417109,59158.0,59153.0,0.00669527]
[1728583739370,0.41517109,59158.0,59153.0,0.00669527]
[1728583739586,0.001,59158.0,59153.0,0.00669527]
[1728583739814,0.001,59159.0,59158.0,0.0001]
[1728583740044,0.49058156,59168.0,59158.0,0.0001]
[1728583740045,0.00422553,59167.0,59158.0,0.0001]
[1728583740295,0.25333345,59159.0,59158.0,0.0001]
[1728583740520,0.32633623,59159.0,59158.0,0.0001]
[1728583740746,1.751099,59172.0,59158.0,0.0001]
[1728583740747,0.32633623,59168.0,59158.0,0.0001]
[1728583740982,0.25333345,59171.0,59158.0,0.0001]
[1728583740983,0.32633623,59163.0,59158.0,0.0001]
[1728583741473,0.16506321,59162.0,59158.0,0.0001]
[1728583742228,0.32633623,59159.0,59158.0,0.0001]
[1728583742440,0.48717387,59159.0,59158.0,0.0001]
[1728583742935,0.002,59162.0,59158.0,0.0001]
[1728583743196,0.25333345,59161.0,59158.0,0.0001]
[1728583743399,0.32633623,59168.0,59158.0,0.0001]
[1728583743619,0.25333345,59165.0,59158.0,0.0001]
[1728583743841,0.32633623,59164.0,59158.0,0.0001]
[1728583744062,0.004,59159.0,59158.0,0.0001]
[1728583744497,0.008,59159.0,59158.0,0.169138]
[1728583744724,0.004,59159.0,59158.0,0.169138]
[1728583744968,0.004,59159.0,59158.0,0.0001]
[1728583745409,0.32633623,59164.0,59158.0,0.0001]
[1728583745650,0.32633623,59159.0,59158.0,0.0001]
[1728583746096,0.32733623,59159.0,59158.0,0.0001]
[1728583746314,0.32633623,59169.0,59158.0,0.0001]
[1728583746537,0.25333345,59164.0,59158.0,0.0001]
[1728583746768,0.25333345,59164.0,59160.0,0.16903]
[1728583747032,0.32633623,59169.0,59164.0,0.169021]
[1728583747262,0.32633623,59169.0,59165.0,0.1973]
[1728583747493,0.32733623,59169.0,59158.0,0.169137]
[1728583747724,0.32633623,59164.0,59158.0,0.0001]
[1728583747957,0.32633623,59164.0,59159.0,0.169034]
[1728583748180,0.32633623,59164.0,59158.0,0.0001]
[1728583748398,0.005,59169.0,59158.0,0.0001]
[1728583748619,0.001,59169.0,59158.0,0.0001]
[1728583748840,0.25333345,59171.0,59158.0,0.169136]
[1728583749073,0.25333345,59165.0,59158.0,0.0001]
[1728583749566,0.00563,59169.0,59158.0,0.0001]
[1728583749787,0.25333345,59163.0,59158.0,0.0001]
[1728583750010,0.00163,59169.0,59158.0,0.0001]
[1728583750011,0.16506349,59162.0,59158.0,0.0001]
[1728583750264,0.16083764,59162.0,59158.0,0.0001]
[1728583750496,0.00163,59169.0,59158.0,0.0001]
[1728583750728,0.25333345,59164.0,59158.0,0.0001]
[1728583750961,0.1650635,59163.0,59158.0,0.0001]
[1728583751889,0.16083764,59163.0,59158.0,0.0011]
[1728583752170,0.06987634,59163.0,59159.0,0.04081565]
[1728583752405,0.06987634,59163.0,59158.0,0.0001]
[1728583752865,0.07587634,59163.0,59158.0,0.0001]
[1728583753330,0.06987634,59163.0,59158.0,0.0001]
[1728583753560,0.07587634,59163.0,59158.0,0.0001]
[1728583753788,0.006,59163.0,59158.0,0.0001]
[1728583754031,0.006,59163.0,59158.0,0.1965]
[1728583754255,0.013,59163.0,59158.0,0.1965]
[1728583754505,0.006,59163.0,59158.0,0.1965]
[1728583755013,0.007,59163.0,59162.0,0.169027]
[1728583755244,0.007,59163.0,59162.0,0.75620087]
[1728583755245,0.006,59163.0,59162.0,0.75620087]
[1728583755473,0.006,59163.0,59158.0,0.1965]
[1728583755707,0.25333345,59167.0,59158.0,0.1965]
[1728583755936,0.41417109,59167.0,59158.0,0.1965]
[1728583756165,0.001,59163.0,59158.0,0.1925]
[1728583756630,0.25333345,59167.0,59154.0,0.169048]
[1728583756871,0.25333345,59167.0,59157.0,0.338081]
[1728583757112,0.25333345,59167.0,59165.0,0.0001]
[1728583757619,0.00163,59169.0,59165.0,0.0001]
[1728583757869,0.001,59167.0,59165.0,0.0001]
[1728583758109,0.001,59167.0,59156.0,0.914085]
[1728583758110,4.33935004,59100.0,59099.0,0.393607]
[1728583758400,2.40799433,59100.0,59099.0,9.33005999]
[1728583758655,1.11078852,59100.0,59099.0,10.90254724]
[1728583758868,1.11078852,59100.0,59099.0,10.49414724]
[1728583759314,1.11078852,59100.0,59099.0,8.76172209]
[1728583759530,0.97542452,59100.0,59099.0,10.11048488]
[1728583759746,0.97542452,59100.0,59099.0,10.10558488]
[1728583759966,0.94158352,59100.0,59099.0,10.10558488]
[1728583760435,0.94158352,59100.0,59099.0,9.15138488]
[1728583760658,0.94158352,59100.0,59099.0,9.49316589]
[1728583760872,0.94258352,59100.0,59099.0,9.49316589]
[1728583761315,0.94258352,59100.0,59099.0,8.56566589]
[1728583761316,0.94458352,59100.0,59099.0,8.56566589]
[1728583761548,0.94458352,59100.0,59099.0,4.93036589]
[1728583761549,0.94258352,59100.0,59099.0,4.93036589]
[1728583761772,0.94158352,59100.0,59099.0,4.92836589]
[1728583761992,0.89066956,59100.0,59099.0,5.01518189]
[1728583762250,0.89066956,59100.0,59099.0,3.86968189]
[1728583762527,0.88966956,59100.0,59099.0,3.14594705]
[1728583762750,0.88966956,59100.0,59099.0,2.31889274]
[1728583762979,0.89066956,59100.0,59099.0,2.48173038]
[1728583763204,0.89066956,59100.0,59099.0,2.45528311]
[1728583763431,0.89166956,59100.0,59099.0,1.94773847]
[1728583763656,1.14936956,59100.0,59099.0,1.38677771]
[1728583763899,1.15436956,59100.0,59099.0,1.36031332]
[1728583764110,1.14936956,59100.0,59099.0,1.52752032]
[1728583764330,1.07006956,59100.0,59099.0,1.52752032]
[1728583764554,1.07206956,59100.0,59099.0,1.52952032]
[1728583764793,1.07206956,59100.0,59099.0,1.62952032]
[1728583765077,1.39804021,59100.0,59099.0,1.20652032]
[1728583765305,0.89066956,59100.0,59099.0,1.36735796]
[1728583765528,0.88966956,59100.0,59099.0,1.36535796]
[1728583765750,1.21664021,59100.0,59099.0,1.36535796]
[1728583765974,1.21764021,59100.0,59099.0,1.36735796]
[1728583766432,1.21764021,59100.0,59066.0,0.46614]
[1728583766433,0.0797,59097.0,59066.0,0.46614]
[1728583766691,2.15318317,59100.0,59043.0,0.00757942]
[1728583766692,0.197365,59044.0,59043.0,0.00757942]
[1728583766927,0.197365,59044.0,59005.0,1.23686852]
[1728583766928,0.005,59029.0,59005.0,1.23686852]
[1728583767170,0.005,59029.0,59010.0,0.169461]
[1728583767171,0.0027589,59011.0,59010.0,0.169461]
[1728583767494,0.169405,59030.0,59016.0,0.169443]
[1728583767495,0.0027589,59017.0,59016.0,0.169443]
[1728583767692,0.0027589,59017.0,59008.0,0.424]
[1728583767693,0.32697065,59014.0,59008.0,0.424]
[1728583767919,0.005,59017.0,59006.0,0.7795]
[1728583767920,0.0027589,59017.0,59006.0,0.338945]
[1728583768139,1.01799592,59015.0,59014.0,0.169451]
[1728583768632,0.0027589,59015.0,59014.0,0.169451]
[1728583768900,0.0027589,59015.0,59000.0,0.47448119]
[1728583768901,0.0027589,59001.0,59000.0,0.47448119]
[1728583769127,0.077,59014.0,59000.0,0.47448119]
[1728583769128,0.0027589,59008.0,59007.0,0.169471]
[1728583769342,0.0027589,59008.0,59003.0,1.01523702]
[1728583769343,0.0027589,59016.0,59003.0,0.089]
[1728583769563,0.001,59017.0,59016.0,0.669445]
[1728583769803,0.001,59017.0,59016.0,2.70687015]
[1728583770277,1.01523702,59024.0,59023.0,0.269425]
[1728583770497,1.01523702,59030.0,59029.0,0.769408]
[1728583770715,1.01523702,59030.0,59029.0,1.3877173]
[1728583770954,0.0027589,59050.0,59041.0,0.269373]
[1728583771180,0.0788,59057.0,59041.0,0.269373]
[1728583771181,0.0027589,59047.0,59041.0,0.269373]
[1728583771402,0.0027589,59046.0,59045.0,0.269362]
[1728583772311,0.0077589,59043.0,59042.0,0.169369]
[1728583772539,0.00423355,59051.0,59041.0,0.5]
[1728583772540,0.0077589,59042.0,59041.0,0.769373]
[1728583772835,0.3792682,59042.0,59041.0,0.5]
[1728583772976,0.3792682,59042.0,59021.0,0.59290037]
[1728583772977,0.0077589,59022.0,59021.0,0.25404137]
[1728583773195,0.0077589,59022.0,59020.0,0.169433]
[1728583773409,0.005,59018.0,59008.0,0.25404137]
[1728583773616,0.0077589,59022.0,59021.0,0.169431]
[1728583773839,0.005,59020.0,59019.0,0.169436]
[1728583774075,0.005,59018.0,59017.0,0.169442]
[1728583774293,0.005,59018.0,59017.0,0.1]
[1728583774505,0.0077589,59018.0,59017.0,0.228242]
[1728583774938,0.0027589,59018.0,59017.0,0.728242]
[1728583775377,0.0027589,59019.0,59018.0,0.169439]
[1728583775587,0.0027589,59021.0,59018.0,0.338878]
[1728583775806,0.25404137,59023.0,59019.0,0.169436]
[1728583775807,0.0077589,59020.0,59019.0,0.169436]
[1728583776018,0.0027589,59022.0,59021.0,0.169431]
[1728583776236,0.0027589,59025.0,59024.0,0.169422]
[1728583776683,0.0027589,59029.0,59024.0,0.5081483]
[1728583776895,0.25680027,59033.0,59032.0,0.169399]
[1728583777104,0.25404137,59039.0,59033.0,0.1]
[1728583777105,0.005,59034.0,59033.0,0.1]
[1728583777314,0.0027589,59035.0,59033.0,0.1]
[1728583777528,0.0077589,59038.0,59037.0,0.169385]
[1728583778027,0.083,59053.0,59038.0,0.1]
[1728583778028,0.0077589,59046.0,59038.0,0.1]
[1728583778238,0.083,59053.0,59039.0,0.1]
[1728583778239,0.0027589,59040.0,59039.0,0.1]
[1728583778460,0.0027589,59040.0,59039.0,0.269377]
[1728583778672,0.0077589,59041.0,59040.0,0.269376]
[1728583779118,0.0077589,59041.0,59040.0,0.1]
[1728583779335,0.0127589,59040.0,59039.0,0.5]
[1728583779551,0.5061289,59040.0,59039.0,0.5]
[1728583779986,0.5081289,59040.0,59039.0,0.5]
[1728583780425,0.0147589,59040.0,59039.0,0.5]
[1728583780651,0.0107589,59040.0,59039.0,0.506]
[1728583780868,0.0107589,59040.0,59039.0,0.51]
[1728583781084,0.0097589,59040.0,59039.0,0.504]
[1728583781300,0.0107589,59040.0,59039.0,0.673379]
[1728583781557,0.0107589,59040.0,59039.0,0.669379]
[1728583781810,0.0107589,59040.0,59028.0,0.1]
[1728583781811,0.4550949,59019.0,59018.0,4e-05]
[1728583782031,0.9484649,59019.0,59018.0,4e-05]
[1728583782259,0.9484649,59019.0,59018.0,0.00593457]
[1728583782515,0.9504649,59019.0,59018.0,4e-05]
[1728583782741,0.9453382,59019.0,59018.0,4e-05]
[1728583782981,0.4519682,59019.0,59018.0,4e-05]
[1728583783219,0.6214042,59019.0,59018.0,4e-05]
[1728583783488,0.0077589,59003.0,59002.0,0.25404137]
[1728583783682,0.1820682,59003.0,59002.0,0.25404137]
[1728583783901,0.0127589,59001.0,59000.0,0.47458119]
[1728583784145,0.1820682,59001.0,59000.0,0.47458119]
[1728583784404,0.0077589,59001.0,59000.0,0.64407219]
[1728583784620,0.0077589,59001.0,59000.0,0.42168119]
[1728583784837,0.007,59003.0,59002.0,0.169485]
[1728583784838,0.0097589,59003.0,59002.0,0.169485]
[1728583785300,0.0147589,59003.0,59002.0,0.169485]
[1728583785518,0.0147589,59003.0,59002.0,0.17489607]
[1728583785762,0.0077589,59003.0,59002.0,0.17489607]
[1728583786204,0.0077589,59003.0,59002.0,0.67489607]
[1728583786904,0.0027589,59003.0,59002.0,0.67889607]
[1728583787134,0.0027589,59003.0,59002.0,0.67489607]
[1728583787369,0.0027589,59003.0,59002.0,0.68139607]
[1728583787370,0.0037589,59003.0,59002.0,0.68139607]
[1728583787606,0.0087589,59003.0,59002.0,0.67739607]
[1728583787846,0.0027589,59003.0,59002.0,0.67539607]
[1728583788088,0.0027589,59003.0,59002.0,0.67739607]
[1728583788344,0.0037589,59003.0,59002.0,0.67739607]
[1728583788588,0.002,59022.0,59002.0,0.67739607]
[1728583788589,0.0027589,59004.0,59003.0,0.269482]
[1728583788839,0.0027589,59004.0,59003.0,0.762852]
[1728583789068,0.1770682,59004.0,59003.0,0.00540532]
[1728583789320,0.0077589,59004.0,59003.0,0.00540532]
[1728583789557,0.0077589,59004.0,59003.0,0.17488732]
[1728583789778,0.0077589,59004.0,59003.0,0.17492732]
[1728583790461,0.0087589,59004.0,59003.0,0.18592732]
[1728583790987,0.0077589,59004.0,59003.0,0.17492732]
[1728583791453,0.0027589,59004.0,59003.0,0.17492732]
[1728583791903,0.0077589,59004.0,59003.0,0.17492732]
[1728583792148,0.0097589,59004.0,59003.0,0.17492732]
[1728583792367,0.0097589,59004.0,59003.0,0.50559332]
[1728583792368,0.0092589,59004.0,59003.0,0.50559332]
[1728583793063,0.0042589,59004.0,59003.0,0.78110849]
[1728583793359,0.0042589,59004.0,59003.0,0.77476048]
[1728583793585,0.0042589,59004.0,59003.0,0.76872731]
[1728583793800,0.0092589,59004.0,59003.0,0.66872731]
[1728583794017,0.0072589,59004.0,59003.0,0.66872731]
[1728583794264,0.0072589,59004.0,59003.0,0.67372731]
[1728583794748,0.0022589,59004.0,59003.0,0.66872731]
[1728583794968,0.0072589,59004.0,59003.0,0.67372731]
[1728583795199,0.0072589,59004.0,59003.0,0.01487531]
[1728583795448,0.0942589,59004.0,59003.0,0.01487531]
[1728583795687,0.0892589,59004.0,59003.0,0.01087531]
[1728583795949,0.0892589,59004.0,59003.0,0.01487531]
[1728583795950,0.0072589,59004.0,59003.0,0.01487531]
[1728583796175,0.0072589,59004.0,59003.0,0.17935731]
[1728583796434,0.0142589,59001.0,59000.0,0.42172119]
[1728583796665,0.3572943,59001.0,59000.0,0.37821]
[1728583796913,0.3530562,59001.0,59000.0,0.37821]
[1728583797232,0.60709757,59001.0,59000.0,0.33988718]
[1728583797407,0.60709757,59001.0,58971.0,0.00029]
[1728583797408,0.2749,58985.0,58971.0,0.00029]
[1728583797640,0.169541,58983.0,58977.0,0.49337]
[1728583797878,0.005,58996.0,58971.0,0.00029]
[1728583797879,0.0022589,58972.0,58971.0,0.169864]
[1728583798116,0.0022589,58972.0,58971.0,0.00029]
[1728583798117,0.17607041,58972.0,58971.0,0.00029]
[1728583798343,0.0022589,58972.0,58971.0,0.00029]
[1728583798837,0.0022589,58972.0,58959.0,0.0030303]
[1728583798838,0.1768539,58964.0,58959.0,0.0030303]
[1728583799087,0.19309554,58964.0,58959.0,0.0030303]
[1728583799350,0.0823,58963.0,58959.0,0.0030303]
[1728583799602,0.2565109,58944.0,58943.0,0.01256329]
[1728583800080,0.26075339,58944.0,58943.0,0.01256329]
[1728583800303,0.2654842,58944.0,58943.0,0.01256329]
[1728583800538,0.0112322,58944.0,58943.0,0.01256329]
[1728583800772,0.0162313,58944.0,58943.0,0.01256329]
[1728583801054,0.1875406,58944.0,58943.0,0.01256329]
[1728583801276,0.8535626,58944.0,58943.0,0.01256329]
[1728583801497,0.84932101,58944.0,58943.0,0.51256329]
[1728583801966,0.84932101,58944.0,58943.0,0.5191516]
[1728583802195,0.18629901,58944.0,58943.0,0.5191516]
[1728583802477,0.1715682,58944.0,58943.0,0.1888066]
[1728583802730,0.005,58952.0,58947.0,0.608926]
[1728583802731,0.0022589,58948.0,58947.0,0.608926]
[1728583803184,0.0022589,58948.0,58947.0,0.61547727]
[1728583803422,0.00473081,58967.0,58953.0,0.1]
[1728583803862,0.25448099,58964.0,58958.0,0.1]
[1728583803866,0.25448099,58964.0,58963.0,0.269597]
[1728583804088,0.25448099,58964.0,58963.0,0.32184303]
[1728583804348,0.25448099,58977.0,58970.0,0.269577]
[1728583804596,0.25448099,58977.0,58976.0,0.26956]
[1728583804826,0.25448099,58995.0,58982.0,0.269543]
[1728583804827,0.22781578,58983.0,58982.0,0.269543]
[1728583805058,0.25448099,58989.0,58988.0,0.169526]
[1728583805285,0.25448099,58989.0,58988.0,0.762896]
[1728583805531,0.25448099,58995.0,58994.0,0.169508]
[1728583805761,0.25448099,58995.0,58994.0,0.9321873]
[1728583805990,0.00473081,58996.0,58994.0,0.762878]
[1728583806235,0.25948099,59019.0,58994.0,0.762878]
[1728583806236,0.00473081,59002.0,59001.0,0.269488]
[1728583806461,0.00473081,59002.0,59001.0,0.762858]
[1728583806680,0.00698971,59005.0,59004.0,0.16948]
[1728583807210,0.0022589,59010.0,59009.0,0.169465]
[1728583807454,0.0022589,59010.0,59009.0,0.762835]
[1728583808955,0.00698971,59005.0,59004.0,0.669478]
[1728583809393,0.0022589,59011.0,59004.0,0.99837]
[1728583809611,0.25448099,59023.0,59012.0,0.5]
[1728583809837,0.25448099,59023.0,59022.0,0.662798]
[1728583810090,0.002,59037.0,59021.0,0.338861]
[1728583810091,0.0022589,59039.0,59029.0,0.49337]
[1728583810316,0.0022589,59039.0,59021.0,0.3396]
[1728583810317,0.001634,59042.0,59037.0,1.256125]
[1728583810558,0.001634,59042.0,59041.0,0.269373]
[1728583810781,0.0028,59058.0,59057.0,0.269327]
[1728583811036,0.0028,59058.0,59057.0,0.762697]
[1728583811697,0.0028,59058.0,59057.0,1.262697]
[1728583811914,0.001632,59063.0,59057.0,1.262697]
[1728583811915,0.001632,59063.0,59062.0,0.269313]
[1728583812142,0.25448099,59081.0,59071.0,0.338575]
[1728583812392,0.25448099,59081.0,59080.0,1.256002]
[1728583812629,0.00473081,59085.0,59084.0,0.26925]
[1728583812862,0.25448099,59093.0,59092.0,0.169227]
[1728583813081,0.2592118,59093.0,59092.0,0.662597]
[1728583813300,0.01052992,59096.0,59095.0,0.169219]
[1728583813522,0.00354021,59096.0,59095.0,0.169219]
[1728583813749,0.00354021,59096.0,59095.0,0.4385283]
[1728583814198,0.00011,59104.0,59095.0,0.2693093]
[1728583814418,0.00011,59104.0,59103.0,0.169196]
[1728583814419,1e-06,59104.0,59103.0,0.169196]
[1728583814646,1e-06,59104.0,59103.0,0.4385053]
[1728583814878,0.00699071,59104.0,59103.0,0.5]
[1728583815101,0.00473181,59104.0,59103.0,0.669196]
[1728583815327,1e-06,59104.0,59103.0,0.669196]
[1728583815761,1e-06,59104.0,59103.0,0.9385053]
[1728583816486,1e-06,59104.0,59103.0,0.9615053]
[1728583816693,0.25948099,59129.0,59121.0,0.169144]
[1728583816694,0.00473081,59122.0,59121.0,0.169144]
[1728583816910,0.01398971,59122.0,59121.0,0.169144]
[1728583817127,0.00898971,59122.0,59121.0,0.169144]
[1728583817783,0.01398971,59122.0,59121.0,0.169144]
[1728583817991,0.00802971,59122.0,59121.0,0.169144]
[1728583818668,0.00377081,59122.0,59121.0,0.169144]
[1728583818902,0.00602971,59122.0,59121.0,0.169144]
[1728583819337,0.00802971,59122.0,59121.0,0.674144]
[1728583819571,0.00377081,59122.0,59121.0,0.674144]
[1728583819799,0.00577081,59122.0,59121.0,0.674144]
[1728583820040,0.00377081,59122.0,59121.0,0.674144]
[1728583820311,0.0022589,59133.0,59132.0,0.169113]
[1728583820526,0.0022589,59139.0,59136.0,0.338203]
[1728583820762,0.0022589,59139.0,59124.0,0.338271]
[1728583820763,0.00377081,59130.0,59128.0,0.438244]
[1728583820986,0.00377081,59130.0,59129.0,0.269121]
[1728583821226,0.1693093,59145.0,59129.0,0.269121]
[1728583821227,0.0022589,59142.0,59137.0,0.338193]
[1728583821453,0.0022589,59142.0,59129.0,0.2693093]
[1728583821454,0.00377081,59141.0,59140.0,0.49337]
[1728583821685,0.0022589,59144.0,59135.0,1.10068]
[1728583821686,0.00377081,59136.0,59135.0,1.10068]
[1728583821904,0.0022589,59144.0,59135.0,1.10068]
[1728583821905,0.0042589,59144.0,59143.0,0.169081]
[1728583822130,0.00377081,59141.0,59140.0,0.338176]
[1728583822346,0.00377081,59146.0,59145.0,0.507226]
[1728583822575,0.00377081,59145.0,59142.0,0.1]
[1728583822818,0.00377081,59143.0,59142.0,0.2693093]
[1728583823055,0.001634,59153.0,59144.0,0.49337]
[1728583823274,0.001634,59153.0,59151.0,0.338117]
[1728583823526,0.001634,59153.0,59152.0,0.269055]
[1728583823978,0.00766371,59153.0,59152.0,0.269055]
[1728583824198,0.00540481,59153.0,59152.0,0.269055]
[1728583824446,0.00540481,59153.0,59146.0,0.338141]
[1728583824447,0.00377081,59148.0,59142.0,0.012]
[1728583824654,0.00377081,59144.0,59143.0,0.16908]
[1728583825123,0.00377081,59146.0,59145.0,0.169075]
[1728583825380,0.001634,59153.0,59144.0,0.338157]
[1728583825381,0.00377081,59149.0,59148.0,0.169067]
[1728583825609,0.00377081,59149.0,59096.0,0.169213]
[1728583825610,0.00602971,59104.0,59096.0,0.169213]
[1728583825823,0.00602971,59104.0,59092.0,1.01444742]
[1728583825824,0.01302971,59104.0,59092.0,1.01444742]
[1728583826050,0.01102971,59093.0,59092.0,1.01444742]
[1728583826274,0.50639971,59093.0,59092.0,1.01444742]
[1728583826771,0.01302971,59093.0,59092.0,1.51444742]
[1728583827209,0.01302971,59093.0,59092.0,0.5]
[1728583828578,0.01502971,59093.0,59092.0,0.5]
[1728583828794,0.01002971,59093.0,59092.0,0.5]
[1728583829022,0.00802971,59093.0,59092.0,0.50004]
[1728583829303,0.01302971,59093.0,59092.0,0.50004]
[1728583829520,0.00802971,59093.0,59092.0,0.669267]
[1728583829747,0.0042589,59093.0,59092.0,0.669267]
[1728583829958,0.00602971,59093.0,59092.0,0.50004]
[1728583830193,0.00602971,59093.0,59092.0,0.678267]
[1728583830643,0.00602971,59093.0,59092.0,0.50904]
[1728583830644,0.0022589,59093.0,59092.0,0.50904]
[1728583830872,0.00602971,59093.0,59092.0,0.60904]
[1728583831097,0.00602971,59095.0,59092.0,0.86287932]
[1728583831326,0.005,59103.0,59092.0,0.86287932]
[1728583831327,0.0022589,59099.0,59098.0,0.16921]
[1728583831559,0.00602971,59099.0,59098.0,0.26921]
[1728583831823,0.00377081,59099.0,59098.0,0.6077293]
[1728583832052,0.0022589,59102.0,59099.0,0.338414]
[1728583832273,0.0022589,59102.0,59101.0,0.169201]
[1728583832503,0.00602971,59102.0,59101.0,0.169201]
[1728583832934,0.00602971,59102.0,59101.0,0.168201]
[1728583833151,0.0022589,59102.0,59101.0,0.168201]
[1728583833401,0.00602971,59102.0,59101.0,0.271201]
[1728583833867,0.0038869,59122.0,59115.0,0.1]
[1728583834104,0.0022589,59127.0,59121.0,0.59337]
[1728583834396,0.0022589,59128.0,59126.0,1.331627]
[1728583834594,0.00602971,59128.0,59127.0,0.3384363]
[1728583834841,0.0139286,59148.0,59128.0,0.1]
[1728583834842,0.00377081,59138.0,59128.0,0.1]
[1728583835083,0.0022589,59137.0,59136.0,0.49337]
[1728583835327,0.0022589,59141.0,59140.0,0.16909]
[1728583835769,0.00602971,59141.0,59140.0,0.16909]
[1728583836712,0.18211671,59141.0,59140.0,0.014]
[1728583836947,0.18233901,59141.0,59140.0,0.014]
[1728583837185,0.18456661,59141.0,59140.0,0.014]
[1728583837415,0.35365361,59141.0,59140.0,0.014]
[1728583837644,0.35442601,59141.0,59140.0,0.014]
[1728583837761,0.00877081,59137.0,59136.0,0.5]
[1728583837986,0.17808011,59137.0,59136.0,0.5]
[1728583838199,0.18033901,59137.0,59136.0,0.5]
[1728583838469,0.01102971,59137.0,59136.0,0.5]
[1728583838709,0.34943701,59137.0,59136.0,0.5]
[1728583839213,0.01102971,59137.0,59136.0,0.5]
[1728583839836,0.00902971,59137.0,59136.0,0.5]
[1728583840042,0.34743701,59137.0,59136.0,0.5]
[1728583840456,0.34943701,59137.0,59136.0,0.5]
[1728583841112,0.35443701,59137.0,59136.0,0.5]
[1728583841338,0.43353701,59137.0,59136.0,0.5]
[1728583842145,0.42953701,59137.0,59136.0,0.501]
[1728583842315,0.42953701,59137.0,59126.0,0.24983932]
[1728583842316,0.01102971,59127.0,59126.0,0.24983932]
[1728583842527,0.00902971,59121.0,59120.0,0.25383932]
[1728583843145,0.00902971,59121.0,59108.0,0.59219932]
[1728583843146,0.00902971,59111.0,59108.0,0.25383932]
[1728583843381,0.00602971,59109.0,59108.0,0.25383932]
[1728583843795,0.00602971,59109.0,59108.0,0.0001]
[1728583843947,0.17833901,59109.0,59108.0,0.0001]
[1728583844352,0.35174669,59109.0,59108.0,0.0001]
[1728583844581,0.34751701,59109.0,59108.0,0.0001]
[1728583845040,0.17833901,59109.0,59108.0,0.0001]
[1728583845247,0.18196701,59109.0,59108.0,0.0041]
[1728583846107,0.18196701,59109.0,59108.0,0.0001]
[1728583846354,0.35114501,59109.0,59108.0,0.0001]
[1728583846837,0.35614501,59109.0,59108.0,0.0001]
[1728583847550,0.35814501,59109.0,59108.0,0.0001]
[1728583848013,0.43604501,59109.0,59108.0,0.0001]
[1728583848483,0.18523671,59099.0,59098.0,0.000814]
[1728583848707,0.831761,59104.0,59098.0,0.000814]
[1728583848708,0.338404,59101.0,59098.0,0.000814]
[1728583848945,0.169207,59099.0,59098.0,0.000814]
[1728583849182,0.17343801,59099.0,59098.0,0.000814]
[1728583849656,0.34274731,59099.0,59098.0,0.000814]
[1728583849896,0.3385163,59099.0,59098.0,0.000814]
[1728583851070,0.32650181,59099.0,59098.0,0.000814]
[1728583851538,0.32850181,59099.0,59098.0,0.000814]
[1728583851770,0.1713093,59099.0,59098.0,0.000814]
[1728583852000,0.1693093,59099.0,59098.0,0.000814]
[1728583852465,0.011,59099.0,59098.0,0.276024]
[1728583853346,0.011,59099.0,59098.0,0.4453333]
[1728583853572,0.001628,59109.0,59108.0,0.174181]
[1728583854751,0.004628,59109.0,59108.0,0.174181]
[1728583855038,0.004628,59109.0,59108.0,0.005]
[1728583855284,0.004628,59109.0,59092.0,0.000854]
[1728583855285,0.169207,59099.0,59098.0,0.000914]
[1728583855523,0.1693093,59099.0,59098.0,0.000914]
[1728583855762,0.49337,59117.0,59098.0,0.000914]
[1728583855985,0.17353953,59108.0,59098.0,0.000914]
[1728583856425,0.1693093,59108.0,59101.0,0.25383932]
[1728583856639,0.004628,59109.0,59102.0,0.169196]
[1728583856867,0.1709373,59109.0,59099.0,0.005]
[1728583857111,0.1709373,59109.0,59102.0,0.169196]
[1728583857112,0.00422975,59108.0,59102.0,0.169196]
[1728583857373,0.338371,59107.0,59098.0,0.000914]
[1728583857615,0.17353947,59106.0,59098.0,0.000914]
[1728583857847,0.17353947,59106.0,59101.0,0.25383932]
[1728583858087,0.001628,59109.0,59098.0,0.000914]
[1728583858088,0.001628,59109.0,59102.0,0.003]
[1728583858306,0.001628,59109.0,59102.0,0.25683932]
[1728583858538,0.001628,59109.0,59103.0,0.00337545]
[1728583858819,0.001628,59109.0,59101.0,0.25383932]
[1728583858820,0.001628,59109.0,59108.0,0.42302032]
[1728583859044,0.001628,59109.0,59108.0,0.174181]
[1728583859285,0.001628,59109.0,59108.0,0.274181]
[1728583859519,0.001628,59109.0,59108.0,0.4434903]
[1728583859987,0.001628,59109.0,59108.0,0.9714903]
[1728583860214,0.001628,59109.0,59108.0,1.0517903]
[1728583860485,0.001628,59109.0,59108.0,1.0237903]
[1728583861243,0.001628,59109.0,59108.0,1.0287903]
[1728583861464,0.001628,59109.0,59108.0,1.0237903]
[1728583861713,0.002628,59109.0,59108.0,1.0417903]
[1728583861974,0.002628,59109.0,59108.0,0.367481]
[1728583862239,0.002628,59109.0,59108.0,0.013]
[1728583862760,0.3411153,59109.0,59108.0,0.013]
[1728583863242,0.169207,59099.0,59098.0,0.000914]
[1728583863692,0.17343767,59099.0,59098.0,0.000914]
[1728583864149,0.17353995,59099.0,59098.0,0.000914]
[1728583864426,0.338385,59105.0,59098.0,0.000914]
[1728583864427,1.2441,59106.0,59099.0,0.338414]
[1728583864681,1.2441,59106.0,59098.0,0.05340613]
[1728583864682,0.001628,59109.0,59102.0,0.005]
[1728583864909,0.17353912,59108.0,59103.0,0.05249213]
[1728583865396,0.001628,59109.0,59103.0,0.05749213]
[1728583865659,0.001628,59109.0,59108.0,0.767551]
[1728583865872,0.001628,59109.0,59108.0,0.98935243]
[1728583866101,0.001628,59109.0,59108.0,1.01735243]
[1728583866645,0.001626,59126.0,59125.0,0.174133]
[1728583866917,0.001626,59126.0,59125.0,0.4434423]
[1728583867142,0.001626,59126.0,59125.0,1.08119318]
[1728583867365,0.001626,59126.0,59125.0,1.06956318]